bitfinex-derivatives/quotes_BTCF0:USTF0_20250324
["timestamp","ask_amount","ask_price","bid_price","bid_amount"]
[1742839239079,0.67960647,88472.0,88471.0,0.133]
[1742839239883,0.67960647,88472.0,88471.0,0.13364]
[1742839240277,0.67960647,88472.0,88471.0,0.133]
[1742839241088,0.67960647,88472.0,88471.0,0.13364]
[1742839242798,0.51038322,88472.0,88471.0,0.00364]
[1742839243300,0.51038322,88472.0,88471.0,0.1160291]
[1742839243301,0.41838322,88472.0,88471.0,0.1160291]
[1742839243588,0.41838322,88472.0,88471.0,0.1367091]
[1742839243889,0.41838322,88472.0,88471.0,0.3188091]
[1742839244681,0.41838322,88472.0,88471.0,0.33128135]
[1742839245594,0.00064,88472.0,88471.0,0.45036135]
[1742839245893,0.00064,88472.0,88471.0,0.46036135]
[1742839246791,0.1130257,88474.0,88473.0,0.1695384]
[1742839246993,0.3028657,88474.0,88473.0,0.2901784]
[1742839247192,0.18984,88474.0,88473.0,0.2901784]
[1742839247682,0.3028652,88474.0,88473.0,0.12064]
[1742839247887,0.3028652,88474.0,88473.0,0.12164]
[1742839248396,0.18984,88474.0,88473.0,0.2346665]
[1742839248595,0.3028652,88474.0,88473.0,0.2346665]
[1742839249192,0.18984,88474.0,88473.0,0.2346665]
[1742839249991,0.3028652,88474.0,88473.0,0.2346665]
[1742839250194,0.3028652,88474.0,88473.0,0.12164]
[1742839250498,0.41589339,88474.0,88473.0,0.12164]
[1742839251295,0.41589339,88474.0,88473.0,0.2346665]
[1742839254196,0.41589339,88474.0,88473.0,0.12164]
[1742839254591,0.113038,88464.0,88463.0,0.00062171]
[1742839254794,0.113878,88464.0,88463.0,0.13130171]
[1742839254994,0.403678,88464.0,88463.0,0.13130171]
[1742839255190,0.403678,88464.0,88463.0,0.00130171]
[1742839255391,0.51671897,88464.0,88463.0,0.00130171]
[1742839255596,0.51671897,88464.0,88463.0,0.00062171]
[1742839255795,0.51671897,88464.0,88463.0,0.00362171]
[1742839256189,0.51671897,88464.0,88463.0,0.00662171]
[1742839267007,0.41631897,88464.0,88463.0,0.00662171]
[1742839267395,0.41631897,88464.0,88463.0,0.00722171]
[1742839268312,0.11388097,88464.0,88463.0,0.13026101]
[1742839268501,0.22691897,88464.0,88463.0,0.32026101]
[1742839268808,0.00084,88464.0,88463.0,0.33026101]
[1742839269005,0.16922325,88466.0,88465.0,0.1130367]
[1742839269208,0.17006325,88466.0,88465.0,0.3236367]
[1742839269405,0.17006325,88466.0,88465.0,0.5136367]
[1742839269604,0.00084,88466.0,88465.0,0.5136367]
[1742839269811,0.16922325,88467.0,88466.0,0.1130355]
[1742839270010,0.17006325,88467.0,88466.0,0.2736355]
[1742839270210,0.17006325,88467.0,88466.0,0.4636355]
[1742839270810,0.00016955,88472.0,88471.0,0.1130291]
[1742839271111,0.00016955,88472.0,88471.0,0.6026691]
[1742839271300,0.00016955,88472.0,88471.0,0.7942691]
[1742839271807,0.00076956,88472.0,88471.0,0.7942691]
[1742839272013,0.00016955,88472.0,88471.0,0.7942691]
[1742839273111,0.00016955,88472.0,88471.0,0.7962691]
[1742839273408,0.00016955,88472.0,88471.0,0.7972691]
[1742839273912,0.2127156,88482.0,88481.0,0.1130163]
[1742839274113,0.21331561,88482.0,88481.0,0.2826163]
[1742839274313,0.21331561,88482.0,88481.0,0.3551]
[1742839274609,0.32634636,88482.0,88481.0,0.3551]
[1742839274799,0.42494636,88482.0,88481.0,0.3551]
[1742839275004,0.42494636,88482.0,88481.0,0.1416]
[1742839275220,0.42494636,88482.0,88481.0,0.141]
[1742839275713,0.42494636,88482.0,88481.0,0.1416]
[1742839275904,0.42594636,88482.0,88481.0,0.1416]
[1742839276310,0.42594636,88482.0,88481.0,0.141]
[1742839276507,0.42594636,88482.0,88481.0,0.05]
[1742839276709,0.1130265,88473.0,88472.0,0.11896]
[1742839276913,0.1137065,88473.0,88472.0,0.1506]
[1742839277106,0.2073065,88473.0,88472.0,0.2636278]
[1742839277511,0.32033597,88473.0,88472.0,0.1506]
[1742839277713,0.42093597,88473.0,88472.0,0.1506]
[1742839278216,0.42093597,88473.0,88472.0,0.1406]
[1742839278412,0.42093597,88473.0,88472.0,0.14]
[1742839278616,0.42093597,88473.0,88472.0,0.1406]
[1742839278914,0.42093597,88473.0,88472.0,0.1426]
[1742839279213,0.42093597,88473.0,88472.0,0.142]
[1742839279520,0.42093597,88473.0,88472.0,0.1426]
[1742839280611,0.42093597,88473.0,88472.0,0.142]
[1742839281011,0.42093597,88473.0,88472.0,0.14268]
[1742839282005,0.42093597,88473.0,88472.0,0.142]
[1742839282518,0.42093597,88473.0,88472.0,0.1426]
[1742839284210,0.42093597,88473.0,88472.0,0.2556278]
[1742839284415,0.20730947,88473.0,88472.0,0.2556278]
[1742839284612,0.00068,88473.0,88472.0,0.4734278]
[1742839286213,0.1137065,88473.0,88472.0,0.48545579]
[1742839286418,0.2111065,88473.0,88472.0,0.48545579]
[1742839287315,0.32413597,88473.0,88472.0,0.3604]
[1742839287518,0.41933597,88473.0,88472.0,0.4734278]
[1742839287725,0.41933597,88473.0,88472.0,0.48567052]
[1742839287911,0.41933597,88473.0,88472.0,0.4734278]
[1742839288315,0.41933597,88473.0,88472.0,0.3604]
[1742839288510,0.41933597,88473.0,88472.0,0.2695]
[1742839289610,0.41933597,88473.0,88472.0,0.3665]
[1742839290825,0.41933597,88473.0,88472.0,0.4795278]
[1742839291524,0.41933597,88473.0,88472.0,0.2695]
[1742839293126,0.52079287,88473.0,88472.0,0.2695]
[1742839293425,0.52079287,88473.0,88472.0,0.3825278]
[1742839293625,0.40776637,88473.0,88472.0,0.3825278]
[1742839293829,0.40776637,88473.0,88472.0,0.4771278]
[1742839294123,0.52079287,88473.0,88472.0,0.4771278]
[1742839295817,0.40776637,88473.0,88472.0,0.4771278]
[1742839296122,0.52079287,88473.0,88472.0,0.4771278]
[1742839297025,0.41933597,88473.0,88472.0,0.4771278]
[1742839297929,0.41933597,88473.0,88472.0,0.3641]
[1742839298125,0.41933597,88473.0,88472.0,0.2695]
[1742839301320,0.55456893,88473.0,88472.0,0.2695]
[1742839303129,0.55456893,88473.0,88472.0,0.3825278]
[1742839303329,0.55456893,88473.0,88472.0,0.2695]
[1742839304030,0.55456893,88473.0,88472.0,0.3697]
[1742839305126,0.41933597,88473.0,88472.0,0.3825278]
[1742839306728,0.41933597,88473.0,88472.0,0.2695]
[1742839306939,0.41933597,88473.0,88472.0,0.142]
[1742839307128,0.113038,88464.0,88463.0,0.00062171]
[1742839307429,0.474518,88464.0,88463.0,0.05130171]
[1742839307619,0.760818,88464.0,88463.0,0.05130171]
[1742839307825,0.87384747,88464.0,88463.0,0.05130171]
[1742839308329,0.0565216,88460.0,88451.0,0.1130536]
[1742839308537,0.1130495,88455.0,88454.0,0.41970452]
[1742839308735,0.1138495,88455.0,88454.0,0.41970452]
[1742839308936,0.3071495,88455.0,88454.0,0.41970452]
[1742839309235,0.42019047,88455.0,88454.0,0.41970452]
[1742839309437,0.42019047,88455.0,88454.0,0.1506]
[1742839309631,0.42019047,88455.0,88454.0,0.2477]
[1742839310039,0.42019047,88455.0,88454.0,0.2277]
[1742839310630,0.21074097,88455.0,88454.0,0.3407508]
[1742839310828,0.001,88455.0,88454.0,0.5450508]
[1742839311042,0.00016955,88463.0,88462.0,0.1130406]
[1742839311233,0.16798182,88473.0,88472.0,0.1130278]
[1742839311539,0.26148183,88473.0,88472.0,0.1130278]
[1742839311748,0.26148183,88473.0,88472.0,0.1136678]
[1742839312040,0.3745343,88473.0,88472.0,0.3032678]
[1742839312535,0.4692343,88473.0,88472.0,0.2046678]
[1742839312738,0.4692343,88473.0,88472.0,0.09164]
[1742839313039,0.41427898,88473.0,88472.0,0.2050278]
[1742839313230,0.41427898,88473.0,88472.0,0.2067078]
[1742839313432,0.41427898,88473.0,88472.0,0.09368]
[1742839313637,0.77507898,88473.0,88472.0,0.00268]
[1742839313837,0.77507898,88473.0,88472.0,0.002]
[1742839314239,0.1130444,88459.0,88458.0,0.1188]
[1742839314537,0.4744844,88459.0,88458.0,0.24064]
[1742839314739,0.4745244,88459.0,88458.0,0.24064]
[1742839314939,0.67915387,88459.0,88458.0,0.24064]
[1742839315243,0.67915387,88459.0,88458.0,0.16064]
[1742839315432,0.77085387,88459.0,88458.0,0.16064]
[1742839315739,0.77085387,88459.0,88458.0,0.16564]
[1742839316042,0.77085387,88459.0,88458.0,0.16964]
[1742839316643,0.1130585,88448.0,88447.0,0.00045225]
[1742839316844,0.4746985,88448.0,88447.0,0.11129225]
[1742839317146,0.5684985,88448.0,88447.0,0.00045225]
[1742839317341,0.68155992,88448.0,88447.0,0.00045225]
[1742839317645,0.77605992,88448.0,88447.0,0.00045225]
[1742839318035,0.77705992,88448.0,88447.0,0.00345225]
[1742839318436,0.77705992,88448.0,88447.0,0.10275225]
[1742839318637,0.77705992,88448.0,88447.0,0.10335225]
[1742839318836,0.77705992,88448.0,88447.0,0.10935225]
[1742839319140,0.89585992,88448.0,88447.0,0.01005225]
[1742839319348,0.89585992,88448.0,88447.0,0.00945225]
[1742839320640,0.89585992,88448.0,88447.0,0.00745225]
[1742839322337,0.89485992,88448.0,88447.0,0.00445225]
[1742839323350,0.056536,88438.0,88425.0,0.0565439]
[1742839323652,0.4738789,88432.0,88431.0,0.24413153]
[1742839323844,0.4746389,88432.0,88431.0,0.24413153]
[1742839324048,0.58770032,88432.0,88431.0,0.24413153]
[1742839324246,0.58770032,88432.0,88431.0,0.33763153]
[1742839324748,0.68540032,88432.0,88431.0,0.43653153]
[1742839324948,0.68540032,88432.0,88431.0,0.22995233]
[1742839325551,0.79062926,88432.0,88431.0,0.09995233]
[1742839326147,0.79062926,88432.0,88431.0,0.00105233]
[1742839326347,0.1130892,88424.0,88423.0,0.00016955]
[1742839326556,0.1130994,88416.0,88415.0,0.00045241]
[1742839326849,0.4746594,88416.0,88415.0,0.06109241]
[1742839327154,0.58774127,88416.0,88415.0,0.00045241]
[1742839327745,0.77524127,88416.0,88415.0,0.00045241]
[1742839328652,0.77624127,88416.0,88415.0,0.00245241]
[1742839329247,0.89604127,88416.0,88415.0,0.00305241]
[1742839329854,0.89604127,88416.0,88415.0,0.00245241]
[1742839330049,0.89604127,88416.0,88415.0,0.00309241]
[1742839330256,0.90434898,88416.0,88415.0,0.00309241]
[1742839330557,1.03933183,88416.0,88415.0,0.00309241]
[1742839330747,1.03933183,88416.0,88415.0,0.00245241]
[1742839331052,0.93602412,88416.0,88415.0,0.00305241]
[1742839331251,0.81722412,88416.0,88415.0,0.30465311]
[1742839331453,0.70412472,88416.0,88415.0,0.30529311]
[1742839331650,0.81722412,88416.0,88415.0,0.30529311]
[1742839331858,0.81722412,88416.0,88415.0,0.40369311]
[1742839332555,0.81622412,88416.0,88415.0,0.40169311]
[1742839332757,0.81722412,88416.0,88415.0,0.40169311]
[1742839333655,0.81722412,88416.0,88415.0,0.28859241]
[1742839334053,0.68024127,88416.0,88415.0,0.28859241]
[1742839334259,0.68124127,88416.0,88415.0,0.40169311]
[1742839335555,0.68124127,88416.0,88415.0,0.28859241]
[1742839335745,0.68224127,88416.0,88415.0,0.28859241]
[1742839335951,0.68224127,88416.0,88415.0,0.40169311]
[1742839336246,0.68224127,88416.0,88415.0,0.28859241]
[1742839336450,0.68224127,88416.0,88415.0,0.19019241]
[1742839336762,0.68224127,88416.0,88415.0,0.09899241]
[1742839336963,0.77534127,88416.0,88415.0,0.09835241]
[1742839338861,0.77534127,88416.0,88415.0,0.00045241]
[1742839339356,0.77534127,88416.0,88409.0,0.0941]
[1742839339357,0.1131071,88410.0,88409.0,0.0941]
[1742839339567,0.1131096,88408.0,88407.0,0.00016965]
[1742839339773,0.4746696,88408.0,88407.0,0.00016965]
[1742839340075,0.58777194,88408.0,88407.0,0.00016965]
[1742839340276,0.77097194,88408.0,88407.0,0.00016965]
[1742839342474,0.77097194,88408.0,88407.0,0.00076965]
[1742839342667,0.68047194,88408.0,88407.0,0.00076965]
[1742839343180,0.68047194,88408.0,88407.0,0.19346965]
[1742839348686,0.77997194,88408.0,88407.0,0.19346965]
[1742839350184,0.77997194,88408.0,88407.0,0.19286965]
[1742839350386,0.77997194,88408.0,88407.0,0.19346965]
[1742839352374,0.77997194,88408.0,88407.0,0.09976965]
[1742839352581,0.77997194,88408.0,88407.0,0.09916965]
[1742839353788,0.77997194,88408.0,88407.0,0.09980965]
[1742839354087,0.77997194,88408.0,88407.0,0.09916965]
[1742839354993,0.83497176,88408.0,88407.0,0.09916965]
[1742839357982,0.83497176,88408.0,88407.0,0.09976965]
[1742839358191,0.83497176,88408.0,88407.0,0.09916965]
[1742839358686,1.01036637,88408.0,88407.0,0.09916965]
[1742839360087,1.01036637,88408.0,88407.0,0.00016965]
[1742839362687,0.83497176,88408.0,88407.0,0.00016965]
[1742839362886,0.83497176,88408.0,88407.0,0.00076965]
[1742839363092,0.73547176,88408.0,88407.0,0.00076965]
[1742839363283,0.62236216,88408.0,88407.0,0.00076965]
[1742839363485,0.52966216,88408.0,88407.0,0.42962055]
[1742839363690,0.52966216,88408.0,88407.0,0.42958055]
[1742839363890,0.4198,88415.0,88414.0,0.1131019]
[1742839364085,0.42044,88415.0,88414.0,0.1137419]
[1742839364289,0.5335407,88415.0,88414.0,0.2114419]
[1742839364690,0.64664431,88415.0,88414.0,0.2114419]
[1742839365095,0.64764431,88415.0,88414.0,0.2114419]
[1742839365294,0.64764431,88415.0,88414.0,0.09834]
[1742839365490,0.64764431,88415.0,88414.0,0.0977]
[1742839365706,0.83634431,88415.0,88414.0,0.0977]
[1742839366389,0.83634431,88415.0,88414.0,0.09834]
[1742839366595,0.41654431,88415.0,88414.0,0.09834]
[1742839367799,0.41654431,88415.0,88414.0,0.2114419]
[1742839368002,0.41654431,88415.0,88414.0,0.09834]
[1742839368396,0.41654431,88415.0,88414.0,0.2114419]
[1742839369101,0.41654431,88415.0,88414.0,0.3112419]
[1742839369488,0.31894431,88415.0,88414.0,0.3112419]
[1742839371003,0.41684431,88415.0,88414.0,0.3112419]
[1742839373106,0.42915192,88415.0,88414.0,0.19814]
[1742839373905,0.42915192,88415.0,88414.0,0.3112419]
[1742839374105,0.42815192,88415.0,88414.0,0.3112419]
[1742839374407,0.42915192,88415.0,88414.0,0.3112419]
[1742839375805,0.12705122,88415.0,88414.0,0.3112419]
[1742839376108,0.24015192,88415.0,88414.0,0.3112419]
[1742839376405,0.12705122,88415.0,88414.0,0.3112419]
[1742839376590,0.24015192,88415.0,88414.0,0.32353147]
[1742839376791,0.12705122,88415.0,88414.0,0.32353147]
[1742839377397,0.24015192,88415.0,88414.0,0.32353147]
[1742839377809,0.43385192,88415.0,88414.0,0.32353147]
[1742839378303,0.24015192,88415.0,88414.0,0.32353147]
[1742839378505,0.11474361,88415.0,88414.0,0.34353147]
[1742839378805,0.00164,88415.0,88414.0,0.34353147]
[1742839379005,0.00164,88415.0,88414.0,0.35353147]
[1742839379704,0.16934787,88417.0,88416.0,0.1130994]
[1742839380003,0.17018787,88417.0,88416.0,0.3277394]
[1742839380196,0.17018787,88417.0,88416.0,0.4231394]
[1742839380396,0.28329148,88417.0,88416.0,0.4231394]
[1742839380792,0.11394361,88417.0,88416.0,0.4231394]
[1742839380992,0.11594361,88417.0,88416.0,0.4231394]
[1742839382904,0.16934787,88421.0,88416.0,0.4231394]
[1742839382905,0.16934787,88421.0,88420.0,0.1130943]
[1742839383107,0.17042788,88421.0,88420.0,0.1641743]
[1742839383296,0.17042788,88421.0,88420.0,0.4456743]
[1742839384302,0.00108001,88421.0,88420.0,0.4456743]
[1742839384507,0.00208001,88421.0,88420.0,0.4456743]
[1742839384707,0.00508001,88421.0,88420.0,0.4456743]
[1742839386503,0.11817301,88421.0,88420.0,0.4456743]
[1742839386704,0.00508001,88421.0,88420.0,0.4456743]
[1742839387105,0.11817301,88421.0,88420.0,0.4456743]
[1742839387303,0.00508001,88421.0,88420.0,0.4456743]
[1742839387505,0.19788001,88421.0,88420.0,0.4456743]
[1742839391317,0.31097301,88421.0,88420.0,0.4456743]
[1742839391615,0.31097595,88421.0,88420.0,0.4456743]
[1742839391817,0.42406895,88421.0,88420.0,0.4456743]
[1742839397310,0.42406895,88421.0,88420.0,0.3488743]
[1742839397619,0.52553357,88421.0,88420.0,0.3488743]
[1742839398120,0.41244057,88421.0,88420.0,0.3488743]
[1742839398317,0.52553357,88421.0,88420.0,0.4485743]
[1742839398909,0.52553357,88421.0,88420.0,0.23578]
[1742839399112,0.88633357,88421.0,88420.0,0.05108]
[1742839399307,0.78483688,88421.0,88408.0,0.2315495]
[1742839399515,0.1131083,88409.0,88408.0,0.6526295]
[1742839399724,0.113107,88411.0,88410.0,0.1696593]
[1742839399917,0.2056058,88411.0,88410.0,0.57282735]
[1742839400117,0.2067658,88411.0,88410.0,0.57282735]
[1742839400314,0.31986174,88411.0,88410.0,0.39108]
[1742839400715,0.52295686,88411.0,88410.0,0.19108]
[1742839401023,0.52295686,88411.0,88410.0,0.00108]
[1742839401511,0.1131083,88409.0,88408.0,0.001]
[1742839401716,0.1131083,88409.0,88408.0,0.00184]
[1742839401717,0.1137483,88409.0,88408.0,0.00184]
[1742839401914,0.3083483,88409.0,88408.0,0.001]
[1742839402219,0.42145703,88409.0,88408.0,0.001]
[1742839402613,0.1131096,88408.0,88407.0,0.00016965]
[1742839402814,0.11370961,88408.0,88407.0,0.02016965]
[1742839403021,0.30830961,88408.0,88407.0,0.02016965]
[1742839403229,0.4214209,88408.0,88407.0,0.02092965]
[1742839403414,0.4214209,88408.0,88407.0,0.13404055]
[1742839403611,0.3083113,88408.0,88407.0,0.49484055]
[1742839403817,0.1130917,88422.0,88421.0,0.1696362]
[1742839404011,0.1130917,88422.0,88421.0,0.1696388]
[1742839404012,0.09804,88422.0,88421.0,0.1696388]
[1742839404213,0.00064,88422.0,88421.0,0.1905588]
[1742839405118,0.00164,88422.0,88421.0,0.1905588]
[1742839405325,0.00192,88422.0,88421.0,0.3089988]
[1742839405521,0.00192,88422.0,88421.0,0.4036988]
[1742839405921,0.00492,88422.0,88421.0,0.4036988]
[1742839406228,0.00492,88422.0,88421.0,0.41577026]
[1742839406527,0.004,88422.0,88421.0,0.41577026]
[1742839407423,0.00492,88422.0,88421.0,0.41577026]
[1742839407723,0.10242,88422.0,88421.0,0.41577026]
[1742839408031,0.1015,88422.0,88421.0,0.41577026]
[1742839408421,0.10242,88422.0,88421.0,0.41577026]
[1742839409022,0.1015,88422.0,88421.0,0.41577026]
[1742839409223,0.1025,88422.0,88421.0,0.41577026]
[1742839409819,0.1945,88422.0,88421.0,0.41577026]
[1742839411332,0.1025,88422.0,88421.0,0.77657026]
[1742839411531,0.1015,88422.0,88421.0,1.13737026]
[1742839411729,0.10210001,88422.0,88421.0,0.77657026]
[1742839413023,0.21519171,88422.0,88421.0,0.6514058]
[1742839413334,0.21519171,88422.0,88421.0,0.66313263]
[1742839413524,0.19970001,88422.0,88421.0,0.66313263]
[1742839413926,0.19970001,88422.0,88421.0,0.76263263]
[1742839414324,0.19970001,88422.0,88421.0,0.7509058]
[1742839415431,0.19970001,88422.0,88421.0,0.76250199]
[1742839415630,0.10152442,88425.0,88421.0,0.76250199]
[1742839415631,0.10152442,88425.0,88423.0,0.1130904]
[1742839415930,0.26240736,88430.0,88428.0,0.113084]
[1742839416119,0.26240736,88430.0,88429.0,0.5730828]
[1742839416319,0.26356736,88430.0,88429.0,1.0337028]
[1742839416521,0.27241717,88430.0,88429.0,1.0337028]
[1742839416728,0.00884981,88430.0,88429.0,1.0337028]
[1742839416928,0.23666482,88451.0,88439.0,0.0565347]
[1742839417133,0.23818482,88451.0,88450.0,0.4738559]
[1742839417335,0.23818482,88451.0,88450.0,0.6236959]
[1742839417934,0.23818482,88451.0,88450.0,0.8144959]
[1742839418136,0.54233942,88451.0,88450.0,0.13128]
[1742839418347,0.754697,88451.0,88450.0,0.03]
[1742839418745,0.759697,88451.0,88450.0,0.03]
[1742839419346,0.52303218,88451.0,88450.0,0.03]
[1742839419549,0.52303218,88451.0,88450.0,0.03148]
[1742839419744,0.52803218,88451.0,88450.0,0.03148]
[1742839422143,0.52803218,88451.0,88450.0,0.03]
[1742839422852,0.1130649,88443.0,88442.0,0.16976375]
[1742839423055,0.11366491,88443.0,88442.0,0.44124375]
[1742839423347,0.30076491,88443.0,88442.0,0.44124375]
[1742839423542,0.41382249,88443.0,88442.0,0.44124375]
[1742839423739,0.30075759,88443.0,88442.0,0.44124375]
[1742839424143,0.30575759,88443.0,88442.0,0.44224375]
[1742839424345,0.19770001,88443.0,88442.0,0.44224375]
[1742839424657,0.1971,88443.0,88442.0,0.44224375]
[1742839424847,0.3101649,88443.0,88442.0,0.44224375]
[1742839425150,0.3116449,88443.0,88442.0,0.44224375]
[1742839425854,0.18858,88443.0,88442.0,0.44224375]
[1742839426052,0.09638,88443.0,88442.0,0.44224375]
[1742839426254,0.0565261,88453.0,88452.0,0.056526]
[1742839426450,0.05712611,88453.0,88452.0,0.056526]
[1742839426757,0.05712611,88453.0,88452.0,0.058086]
[1742839426957,0.17018113,88453.0,88452.0,0.058086]
[1742839427255,0.30552973,88453.0,88452.0,0.058086]
[1742839427454,0.31052973,88453.0,88452.0,0.152386]
[1742839427658,0.50632973,88453.0,88452.0,0.242886]
[1742839428451,0.50432973,88453.0,88452.0,0.00156]
[1742839428654,0.1695909,88447.0,88446.0,0.1130607]
[1742839428953,0.17115091,88447.0,88446.0,0.16308]
[1742839429157,0.1799746,88447.0,88446.0,0.16308]
[1742839429458,0.29302962,88447.0,88446.0,0.276141]
[1742839429661,0.47570593,88447.0,88446.0,0.276141]
[1742839429864,0.47570593,88447.0,88446.0,0.277141]
[1742839430649,0.47570593,88447.0,88446.0,0.276141]
[1742839431460,0.47570593,88447.0,88446.0,0.277141]
[1742839431854,0.47570593,88447.0,88446.0,0.276141]
[1742839432054,0.47570593,88447.0,88446.0,0.277141]
[1742839433751,0.47570593,88447.0,88446.0,0.16408]
[1742839434958,0.47570593,88447.0,88446.0,0.277141]
[1742839436361,0.47570593,88447.0,88446.0,0.07248]
[1742839437660,0.47570593,88447.0,88446.0,0.185541]
[1742839438359,0.47570593,88447.0,88446.0,0.07248]
[1742839438560,0.47570593,88447.0,88446.0,0.185541]
[1742839438758,0.47570593,88447.0,88446.0,0.07248]
[1742839439362,0.47570593,88447.0,88446.0,0.071]
[1742839439568,0.47570593,88447.0,88446.0,0.07248]
[1742839440170,0.47570593,88447.0,88446.0,0.185541]
[1742839441368,0.47570593,88447.0,88446.0,0.07248]
[1742839442574,0.1130649,88443.0,88442.0,0.00016965]
[1742839442871,0.1137049,88443.0,88442.0,0.00016965]
[1742839443178,0.30395899,88443.0,88442.0,0.00016965]
[1742839443373,0.41702168,88443.0,88442.0,0.00124965]
[1742839444073,0.76896759,88443.0,88442.0,0.00124965]
[1742839444270,0.76896759,88443.0,88442.0,0.00016965]
[1742839444975,0.76896759,88443.0,88442.0,0.00116965]
[1742839447369,1.0269359,88443.0,88442.0,0.00116965]
[1742839448570,0.6661359,88443.0,88442.0,0.00116965]
[1742839448765,0.6661359,88443.0,88442.0,0.11523575]
[1742839449166,0.6661359,88443.0,88442.0,0.29513575]
[1742839449471,0.553071,88443.0,88442.0,0.29513575]
[1742839449668,0.463771,88443.0,88442.0,0.35513575]
[1742839449973,0.5768359,88443.0,88442.0,0.35513575]
[1742839450178,0.46884564,88443.0,88442.0,0.35513575]
[1742839453076,0.46884564,88443.0,88442.0,0.24206965]
[1742839453578,0.41386759,88443.0,88442.0,0.24206965]
[1742839453874,0.41386759,88443.0,88442.0,0.35513575]
[1742839454776,0.41386759,88443.0,88442.0,0.24206965]
[1742839454979,0.41386759,88443.0,88442.0,0.35513575]
[1742839458475,0.41386759,88443.0,88442.0,0.15236965]
[1742839458776,0.50376759,88443.0,88442.0,0.00216965]
[1742839459081,0.50376759,88443.0,88442.0,0.00116965]
[1742839461978,0.50376759,88443.0,88442.0,1e-08]
[1742839462679,0.65376759,88443.0,88442.0,1e-08]
[1742839463774,0.70874807,88443.0,88442.0,1e-08]
[1742839466381,0.70874807,88443.0,88434.0,0.00016965]
[1742839466382,0.113093,88421.0,88420.0,0.0935]
[1742839466679,0.473893,88421.0,88420.0,0.15454]
[1742839466878,0.48650706,88421.0,88420.0,0.15454]
[1742839467075,0.599603,88421.0,88420.0,0.15454]
[1742839467579,0.789403,88421.0,88420.0,0.15454]
[1742839467783,0.790403,88421.0,88420.0,0.15954]
[1742839467983,0.693903,88421.0,88420.0,0.15954]
[1742839468583,0.68228894,88421.0,88420.0,0.2726343]
[1742839468881,0.68228894,88421.0,88420.0,0.15954]
[1742839469086,0.68228894,88421.0,88420.0,0.24664]
[1742839469681,0.77178894,88421.0,88420.0,0.24664]
[1742839470780,0.77178894,88421.0,88420.0,0.3597343]
[1742839471773,0.11609594,88421.0,88420.0,0.3597343]
[1742839471976,0.003,88421.0,88420.0,0.3697343]
[1742839472175,0.003,88421.0,88420.0,0.4878143]
[1742839472389,0.13528808,88422.0,88421.0,0.113093]
[1742839472683,0.0943,88443.0,88429.0,0.056541]
[1742839472883,0.00377,88444.0,88443.0,0.1130649]
[1742839473182,0.24285482,88447.0,88446.0,0.113061]
[1742839473381,0.24285482,88447.0,88446.0,0.244581]
[1742839474692,0.23666482,88447.0,88446.0,0.244581]
[1742839475497,0.23766482,88447.0,88446.0,0.244581]
[1742839475686,0.27047408,88453.0,88450.0,0.0565273]
[1742839475881,0.00016965,88455.0,88454.0,0.1130508]
[1742839476189,0.00016965,88455.0,88454.0,0.2246508]
[1742839476489,0.00016965,88455.0,88454.0,0.4064508]
[1742839477294,0.00016965,88455.0,88454.0,0.41810937]
[1742839477688,0.00216965,88455.0,88454.0,0.41810937]
[1742839479184,0.00516965,88455.0,88454.0,0.42670697]
[1742839479496,0.1134278,88472.0,88471.0,0.1130291]
[1742839479791,0.0004,88472.0,88471.0,0.1145491]
[1742839480290,0.11345247,88472.0,88471.0,0.1145491]
[1742839480480,0.3608,88484.0,88480.0,0.1130176]
[1742839480684,0.3608,88484.0,88480.0,0.1145376]
[1742839480885,0.3608,88484.0,88480.0,0.171046]
[1742839480886,0.0946,88483.0,88480.0,0.171046]
[1742839481092,0.3510219,88483.0,88482.0,0.113015]
[1742839481289,0.113015,88482.0,88481.0,0.0885]
[1742839481492,0.1130291,88471.0,88470.0,0.4788]
[1742839481690,0.1130291,88471.0,88470.0,0.8933504]
[1742839481988,0.005,88472.0,88471.0,0.1130291]
[1742839482194,0.1130283,88472.0,88471.0,0.3675782]
[1742839482595,0.40754627,88472.0,88471.0,0.5484782]
[1742839484596,0.41154627,88472.0,88471.0,0.5484782]
[1742839484793,0.41454627,88472.0,88471.0,0.4354491]
[1742839484996,0.41454627,88472.0,88471.0,0.23002]
[1742839485295,0.41454627,88472.0,88471.0,0.13152]
[1742839486097,0.41454627,88472.0,88471.0,0.2445491]
[1742839486293,0.41454627,88472.0,88471.0,0.3347491]
[1742839486797,0.41454627,88472.0,88471.0,0.22172]
[1742839486995,0.41454627,88472.0,88471.0,0.13152]
[1742839487196,0.41454627,88472.0,88471.0,0.13]
[1742839487697,0.41454627,88472.0,88471.0,0.13152]
[1742839488996,0.41454627,88472.0,88471.0,0.13]
[1742839489199,0.41454627,88472.0,88471.0,0.1316]
[1742839490199,0.42657986,88472.0,88471.0,0.1316]
[1742839490591,0.42657986,88472.0,88471.0,0.13]
[1742839491200,0.42657986,88472.0,88471.0,0.13152]
[1742839491599,0.41454627,88472.0,88471.0,0.13]
[1742839491906,0.1130367,88466.0,88465.0,0.1130359]
[1742839492098,0.1130367,88466.0,88465.0,0.2969559]
[1742839492297,0.2937367,88466.0,88465.0,0.2969559]
[1742839492705,0.40676745,88466.0,88465.0,0.2969559]
[1742839493106,0.40976745,88466.0,88465.0,0.2969559]
[1742839493498,0.40976745,88466.0,88465.0,0.18392]
[1742839493699,0.40976745,88466.0,88465.0,0.2969567]
[1742839494206,0.41276745,88466.0,88465.0,0.09152]
[1742839494699,0.41276745,88466.0,88465.0,0.09]
[1742839494900,0.41276745,88466.0,88465.0,0.09152]
[1742839495205,0.41276745,88466.0,88465.0,0.09]
[1742839495501,0.41276745,88466.0,88465.0,0.0916]
[1742839500410,0.41276745,88466.0,88465.0,0.1825]
[1742839501404,0.41276745,88466.0,88465.0,0.0916]
[1742839501600,0.41276745,88466.0,88465.0,0.09]
[1742839502210,0.41276745,88466.0,88465.0,0.09152]
[1742839502713,0.41276745,88466.0,88465.0,0.2045567]
[1742839502714,0.29973075,88466.0,88465.0,0.2045567]
[1742839502900,0.1867,88466.0,88465.0,0.3983567]
[1742839503309,0.1867,88466.0,88465.0,0.4887567]
[1742839503509,0.1867,88466.0,88465.0,0.50053748]
[1742839507216,0.006,88466.0,88465.0,0.50053748]
[1742839508017,0.0004,88488.0,88483.0,0.1130137]
[1742839508217,0.64303087,88484.0,88483.0,0.1130137]
[1742839508415,0.64303087,88484.0,88483.0,0.1145337]
[1742839508617,0.73163087,88484.0,88483.0,0.2042337]
[1742839508916,0.84466928,88484.0,88483.0,0.2042337]
[1742839509312,1.03356928,88484.0,88483.0,0.2912337]
[1742839509519,0.67776928,88484.0,88483.0,0.2912337]
[1742839509717,0.56475538,88484.0,88483.0,0.2912337]